fUST/lending_fUST_20260506
["ID","MTS","AMOUNT","RATE_DAILY","PERIOD"]
[421655391,1778031044000,-937.14,0.0001315,2]
[421655387,1778031044000,-500.0,0.0001315,2]
[421655382,1778031044000,-3279.7846,0.0001315,2]
[421655398,1778031044000,-500.0,0.0001315,2]
[421655392,1778031044000,-500.0,0.0001315,2]
[421655400,1778031044000,-500.0,0.0001315,2]
[421655408,1778031044000,-501.38,0.0001315,2]
[421655399,1778031044000,-872.83,0.0001315,2]
[421655397,1778031044000,-500.0,0.0001315,2]
[421655403,1778031044000,-500.0,0.0001315,2]
[421655402,1778031044000,-500.0,0.0001315,2]
[421655401,1778031044000,-500.0,0.0001315,2]
[421655407,1778031044000,-571.85,0.0001315,2]
[421655417,1778031044000,-868.63,0.0001315,2]
[421655409,1778031044000,-1793.27,0.0001315,2]
[421655419,1778031044000,-500.0,0.0001315,2]
[421655406,1778031044000,-500.0,0.0001315,2]
[421655418,1778031044000,-556.8,0.0001315,2]
[421655414,1778031044000,-500.0,0.0001315,2]
[421655415,1778031044000,-941.0,0.0001315,2]
[421655390,1778031044000,-500.0,0.0001315,2]
[421655404,1778031044000,-500.0,0.0001315,2]
[421655386,1778031044000,-500.0,0.0001315,2]
[421655363,1778031044000,-822.0,0.00012893,2]
[421655383,1778031044000,-500.0,0.0001315,2]
[421655413,1778031044000,-500.0,0.0001315,2]
[421655351,1778031044000,-602.19,0.00012876,2]
[421655353,1778031044000,-6018.08,0.00012876,2]
[421655352,1778031044000,-500.0,0.00012876,2]
[421655354,1778031044000,-500.0,0.00012876,2]
[421655364,1778031044000,-822.0,0.00012893,2]
[421655356,1778031044000,-3479.48,0.00012876,2]
[421655355,1778031044000,-1533.09,0.00012876,2]
[421655361,1778031044000,-822.0,0.00012893,2]
[421655362,1778031044000,-822.0,0.00012893,2]
[421655357,1778031044000,-822.0,0.00012893,2]
[421655359,1778031044000,-822.0,0.00012893,2]
[421655358,1778031044000,-822.0,0.00012893,2]
[421655360,1778031044000,-822.0,0.00012893,2]
[421655365,1778031044000,-814.0,0.00012893,2]
[421655368,1778031044000,-2000.0,0.000129,2]
[421655372,1778031044000,-2000.0,0.000129,2]
[421655388,1778031044000,-500.0,0.0001315,2]
[421655380,1778031044000,-5605.30957894,0.00013099,2]
[421655389,1778031044000,-500.0,0.0001315,2]
[421655379,1778031044000,-151.0,0.00013,2]
[421655377,1778031044000,-151.0,0.00012936,2]
[421655374,1778031044000,-151.0,0.000129,2]
[421655385,1778031044000,-546.85,0.0001315,2]
[421655376,1778031044000,-11142.34157857,0.000129,2]
[421655375,1778031044000,-11142.34157857,0.000129,2]
[421655371,1778031044000,-2000.0,0.000129,2]
[421655367,1778031044000,-2000.0,0.000129,2]
[421655370,1778031044000,-2000.0,0.000129,2]
[421655369,1778031044000,-2000.0,0.000129,2]
[421655373,1778031044000,-2000.0,0.000129,2]
[421655366,1778031044000,-2000.0,0.000129,2]
[421655410,1778031044000,-500.0,0.0001315,2]
[421655443,1778031044000,-2105.58,0.0001315,2]
[421655411,1778031044000,-500.0,0.0001315,2]
[421655455,1778031044000,-500.0,0.0001315,2]
[421655452,1778031044000,-500.0,0.0001315,2]
[421655454,1778031044000,-500.0,0.0001315,2]
[421655458,1778031044000,-6085.6,0.0001315,2]
[421655457,1778031044000,-718.95,0.0001315,2]
[421655459,1778031044000,-1724.87,0.0001315,2]
[421655464,1778031044000,-1797.08,0.0001315,2]
[421655469,1778031044000,-2046.62,0.0001315,2]
[421655467,1778031044000,-500.0,0.0001315,2]
[421655468,1778031044000,-791.23,0.0001315,2]
[421655466,1778031044000,-500.0,0.0001315,2]
[421655465,1778031044000,-529.31,0.0001315,2]
[421655474,1778031044000,-500.0,0.0001315,2]
[421655476,1778031044000,-500.0,0.0001315,2]
[421655456,1778031044000,-500.0,0.0001315,2]
[421655472,1778031044000,-530.16,0.0001315,2]
[421655475,1778031044000,-2258.64,0.0001315,2]
[421655477,1778031044000,-500.0,0.0001315,2]
[421655471,1778031044000,-1987.86,0.0001315,2]
[421655479,1778031044000,-500.0,0.0001315,2]
[421655478,1778031044000,-626.75,0.0001315,2]
[421655482,1778031044000,-1727.68,0.0001315,2]
[421655480,1778031044000,-760.68,0.0001315,2]
[421655481,1778031044000,-2102.57,0.0001315,2]
[421655484,1778031044000,-500.0,0.0001315,2]
[421655483,1778031044000,-1978.87,0.0001315,2]
[421655486,1778031044000,-614.84,0.0001315,2]
[421655485,1778031044000,-1526.71,0.0001315,2]
[421655487,1778031044000,-3900.35,0.0001315,2]
[421655416,1778031044000,-500.0,0.0001315,2]
[421655473,1778031044000,-643.37,0.0001315,2]
[421655453,1778031044000,-883.42,0.0001315,2]
[421655470,1778031044000,-500.0,0.0001315,2]
[421655462,1778031044000,-5584.53,0.0001315,2]
[421655421,1778031044000,-500.0,0.0001315,2]
[421655450,1778031044000,-500.0,0.0001315,2]
[421655431,1778031044000,-500.0,0.0001315,2]
[421655423,1778031044000,-583.52,0.0001315,2]
[421655433,1778031044000,-500.0,0.0001315,2]
[421655434,1778031044000,-503.52,0.0001315,2]
[421655420,1778031044000,-500.0,0.0001315,2]
[421655422,1778031044000,-1992.04,0.0001315,2]
[421655424,1778031044000,-995.01,0.0001315,2]
[421655427,1778031044000,-500.0,0.0001315,2]
[421655428,1778031044000,-500.0,0.0001315,2]
[421655425,1778031044000,-500.0,0.0001315,2]
[421655430,1778031044000,-500.0,0.0001315,2]
[421655429,1778031044000,-500.0,0.0001315,2]
[421655436,1778031044000,-1271.97,0.0001315,2]
[421655426,1778031044000,-864.9,0.0001315,2]
[421655448,1778031044000,-2115.84,0.0001315,2]
[421655461,1778031044000,-1259.51,0.0001315,2]
[421655463,1778031044000,-500.0,0.0001315,2]
[421655446,1778031044000,-1178.68,0.0001315,2]
[421655451,1778031044000,-693.14,0.0001315,2]
[421655438,1778031044000,-876.56,0.0001315,2]
[421655439,1778031044000,-500.0,0.0001315,2]
[421655442,1778031044000,-1013.61,0.0001315,2]
[421655445,1778031044000,-500.0,0.0001315,2]
[421655444,1778031044000,-500.0,0.0001315,2]
[421655441,1778031044000,-500.0,0.0001315,2]
[421655440,1778031044000,-639.04,0.0001315,2]
[421655449,1778031044000,-500.0,0.0001315,2]
[421655435,1778031044000,-502.41,0.0001315,2]
[421655447,1778031044000,-500.0,0.0001315,2]
[421655437,1778031044000,-500.0,0.0001315,2]
[421655517,1778031045000,-2421.28,0.0001315,2]
[421655510,1778031045000,-1991.72,0.0001315,2]
[421655514,1778031045000,-652.75954347,0.0001315,2]
[421655513,1778031045000,-563.5,0.0001315,2]
[421655516,1778031045000,-1723.61,0.0001315,2]
[421655515,1778031045000,-617.32045653,0.0001315,2]
[421655512,1778031045000,-525.93,0.0001315,2]
[421655518,1778031045000,-507.44,0.0001315,2]
[421655534,1778031045000,-1533.09,0.0001315,2]
[421655519,1778031045000,-851.23,0.0001315,2]
[421655520,1778031045000,-986.17,0.0001315,2]
[421655521,1778031045000,-1880.58,0.0001315,2]
[421655523,1778031045000,-1383.33,0.0001315,2]
[421655525,1778031045000,-500.0,0.0001315,2]
[421655531,1778031045000,-500.0,0.0001315,2]
[421655511,1778031045000,-3161.29,0.0001315,2]
[421655526,1778031045000,-500.0,0.0001315,2]
[421655522,1778031045000,-6815.17,0.0001315,2]
[421655505,1778031045000,-5761.09,0.0001315,2]
[421655491,1778031045000,-5119.77,0.0001315,2]
[421655508,1778031045000,-1355.46,0.0001315,2]
[421655536,1778031045000,-151.0,0.000132,2]
[421655489,1778031045000,-1140.98,0.0001315,2]
[421655490,1778031045000,-500.0,0.0001315,2]
[421655488,1778031045000,-1975.02,0.0001315,2]
[421655492,1778031045000,-2721.66,0.0001315,2]
[421655502,1778031045000,-500.0,0.0001315,2]
[421655504,1778031045000,-500.0,0.0001315,2]
[421655503,1778031045000,-500.0,0.0001315,2]
[421655493,1778031045000,-1779.65,0.0001315,2]
[421655494,1778031045000,-1400.19,0.0001315,2]
[421655495,1778031045000,-773.72,0.0001315,2]
[421655499,1778031045000,-500.0,0.0001315,2]
[421655497,1778031045000,-5221.96,0.0001315,2]
[421655500,1778031045000,-500.0,0.0001315,2]
[421655496,1778031045000,-500.0,0.0001315,2]
[421655501,1778031045000,-29410.5,0.0001315,2]
[421655498,1778031045000,-500.0,0.0001315,2]
[421655506,1778031045000,-826.78,0.0001315,2]
[421655509,1778031045000,-1110.71,0.0001315,2]
[421655507,1778031045000,-1202.22,0.0001315,2]
[421655528,1778031045000,-2887.58,0.0001315,2]
[421655546,1778031045000,-500.0,0.00013424,2]
[421655530,1778031045000,-602.19,0.0001315,2]
[421655553,1778031045000,-500.0,0.00013424,2]
[421655554,1778031045000,-500.0,0.00013424,2]
[421655556,1778031045000,-500.0,0.00013424,2]
[421655558,1778031045000,-500.0,0.00013424,2]
[421655559,1778031045000,-500.0,0.00013424,2]
[421655561,1778031045000,-500.0,0.00013424,2]
[421655560,1778031045000,-500.0,0.00013424,2]
[421655565,1778031045000,-571.85,0.00013424,2]
[421655555,1778031045000,-500.0,0.00013424,2]
[421655563,1778031045000,-948.74,0.00013424,2]
[421655566,1778031045000,-501.38,0.00013424,2]
[421655569,1778031045000,-500.0,0.00013424,2]
[421655570,1778031045000,-500.0,0.00013424,2]
[421655568,1778031045000,-500.0,0.00013424,2]
[421655572,1778031045000,-500.0,0.00013424,2]
[421655571,1778031045000,-500.0,0.00013424,2]
[421655567,1778031045000,-1793.27,0.00013424,2]
[421655527,1778031045000,-1566.52,0.0001315,2]
[421655564,1778031045000,-500.0,0.00013424,2]
[421655557,1778031045000,-872.83,0.00013424,2]
[421655562,1778031045000,-500.0,0.00013424,2]
[421655551,1778031045000,-500.0,0.00013424,2]
[421655532,1778031045000,-6018.08,0.0001315,2]
[421655552,1778031045000,-500.0,0.00013424,2]
[421655524,1778031045000,-2780.76,0.0001315,2]
[421655533,1778031045000,-500.0,0.0001315,2]
[421655535,1778031045000,-3479.48,0.0001315,2]
[421655529,1778031045000,-500.0,0.0001315,2]
[421655547,1778031045000,-500.0,0.00013424,2]
[421655548,1778031045000,-500.0,0.00013424,2]
[421655539,1778031045000,-231.26016421,0.00013365,14]
[421655538,1778031045000,-210.7452,0.0001334,2]
[421655549,1778031045000,-937.14,0.00013424,2]
[421655550,1778031045000,-500.0,0.00013424,2]
[421655537,1778031045000,-151.0,0.000133,2]
[421655542,1778031045000,-500.0,0.00013424,2]
[421655540,1778031045000,-3279.7846,0.00013424,2]
[421655541,1778031045000,-500.0,0.00013424,2]
[421655543,1778031045000,-546.85,0.00013424,2]
[421655545,1778031045000,-500.0,0.00013424,2]
[421655544,1778031045000,-500.0,0.00013424,2]
[421655609,1778031046000,-693.14,0.00013424,2]
[421655607,1778031046000,-500.0,0.00013424,2]
[421655605,1778031046000,-2115.84,0.00013424,2]
[421655600,1778031046000,-2105.58,0.00013424,2]
[421655598,1778031046000,-500.0,0.00013424,2]
[421655595,1778031046000,-876.56,0.00013424,2]
[421655597,1778031046000,-639.04,0.00013424,2]
[421655606,1778031046000,-500.0,0.00013424,2]
[421655599,1778031046000,-1013.61,0.00013424,2]
[421655610,1778031046000,-500.0,0.00013424,2]
[421655618,1778031046000,-1259.51,0.00013424,2]
[421655611,1778031046000,-883.42,0.00013424,2]
[421655612,1778031046000,-500.0,0.00013424,2]
[421655613,1778031046000,-500.0,0.00013424,2]
[421655616,1778031046000,-6085.6,0.00013424,2]
[421655615,1778031046000,-718.95,0.00013424,2]
[421655621,1778031046000,-1797.08,0.00013424,2]
[421655623,1778031046000,-500.0,0.00013424,2]
[421655620,1778031046000,-500.0,0.00013424,2]
[421655624,1778031046000,-500.0,0.00013424,2]
[421655602,1778031046000,-500.0,0.00013424,2]
[421655614,1778031046000,-500.0,0.00013424,2]
[421655603,1778031046000,-1178.68,0.00013424,2]
[421655577,1778031046000,-500.0,0.00013424,2]
[421655601,1778031046000,-500.0,0.00013424,2]
[421655617,1778031046000,-1724.87,0.00013424,2]
[421655575,1778031046000,-868.63,0.00013424,2]
[421655573,1778031046000,-941.0,0.00013424,2]
[421655574,1778031046000,-500.0,0.00013424,2]
[421655576,1778031046000,-556.8,0.00013424,2]
[421655579,1778031046000,-500.0,0.00013424,2]
[421655580,1778031046000,-1992.04,0.00013424,2]
[421655584,1778031046000,-864.9,0.00013424,2]
[421655581,1778031046000,-583.52,0.00013424,2]
[421655583,1778031046000,-500.0,0.00013424,2]
[421655604,1778031046000,-500.0,0.00013424,2]
[421655582,1778031046000,-995.01,0.00013424,2]
[421655594,1778031046000,-500.0,0.00013424,2]
[421655585,1778031046000,-500.0,0.00013424,2]
[421655586,1778031046000,-500.0,0.00013424,2]
[421655587,1778031046000,-500.0,0.00013424,2]
[421655588,1778031046000,-500.0,0.00013424,2]
[421655590,1778031046000,-500.0,0.00013424,2]
[421655589,1778031046000,-332.31735854,0.00013424,2]
[421655592,1778031046000,-502.41,0.00013424,2]
[421655591,1778031046000,-503.52,0.00013424,2]
[421655596,1778031046000,-500.0,0.00013424,2]
[421655593,1778031046000,-1271.97,0.00013424,2]
[421655622,1778031046000,-529.31,0.00013424,2]
[421655578,1778031046000,-500.0,0.00013424,2]
[421655626,1778031046000,-2046.62,0.00013424,2]
[421655645,1778031046000,-1975.02,0.00013424,2]
[421655660,1778031046000,-5221.96,0.00013424,2]
[421655646,1778031046000,-1140.98,0.00013424,2]
[421655662,1778031046000,-482.49657042,0.00013424,2]
[421655664,1778031046000,-29410.5,0.00013424,2]
[421655672,1778031046000,-1110.71,0.00013424,2]
[421655663,1778031046000,-500.0,0.00013424,2]
[421655661,1778031046000,-500.0,0.00013424,2]
[421655671,1778031046000,-1355.46,0.00013424,2]
[421655670,1778031046000,-1202.22,0.00013424,2]
[421655649,1778031046000,-500.0,0.00013424,2]
[421655667,1778031046000,-500.0,0.00013424,2]
[421655668,1778031046000,-5761.09,0.00013424,2]
[421655669,1778031046000,-826.78,0.00013424,2]
[421655666,1778031046000,-500.0,0.00013424,2]
[421655674,1778031046000,-3161.29,0.00013424,2]
[421655675,1778031046000,-525.93,0.00013424,2]
[421655673,1778031046000,-1991.72,0.00013424,2]
[421655676,1778031046000,-563.5,0.00013424,2]
[421655677,1778031046000,-1270.08,0.00013424,2]
[421655679,1778031046000,-2421.28,0.00013424,2]
[421655619,1778031046000,-5584.53,0.00013424,2]
[421655665,1778031046000,-500.0,0.00013424,2]
[421655659,1778031046000,-500.0,0.00013424,2]
[421655678,1778031046000,-1723.61,0.00013424,2]
[421655651,1778031046000,-2721.66,0.00013424,2]
[421655653,1778031046000,-1779.65,0.00013424,2]
[421655627,1778031046000,-500.0,0.00013424,2]
[421655630,1778031046000,-643.37,0.00013424,2]
[421655629,1778031046000,-530.16,0.00013424,2]
[421655625,1778031046000,-791.23,0.00013424,2]
[421655628,1778031046000,-1987.86,0.00013424,2]
[421655633,1778031046000,-500.0,0.00013424,2]
[421655634,1778031046000,-500.0,0.00013424,2]
[421655631,1778031046000,-500.0,0.00013424,2]
[421655636,1778031046000,-500.0,0.00013424,2]
[421655635,1778031046000,-626.75,0.00013424,2]
[421655632,1778031046000,-2258.64,0.00013424,2]
[421655637,1778031046000,-760.68,0.00013424,2]
[421655643,1778031046000,-614.84,0.00013424,2]
[421655638,1778031046000,-2102.57,0.00013424,2]
[421655647,1778031046000,-5119.77,0.00013424,2]
[421655657,1778031046000,-773.72,0.00013424,2]
[421655644,1778031046000,-3900.35,0.00013424,2]
[421655655,1778031046000,-1400.19,0.00013424,2]
[421655642,1778031046000,-1526.71,0.00013424,2]
[421655641,1778031046000,-500.0,0.00013424,2]
[421655639,1778031046000,-1727.68,0.00013424,2]
[421655640,1778031046000,-1978.87,0.00013424,2]
[421655721,1778031047000,-500.0,0.00013698,2]
[421655719,1778031047000,-500.0,0.00013698,2]
[421655715,1778031047000,-160.0,0.00013693,2]
[421655720,1778031047000,-500.0,0.00013698,2]
[421655724,1778031047000,-500.0,0.00013698,2]
[421655717,1778031047000,-3991.3153,0.00013693,2]
[421655711,1778031047000,-30000.0,0.00013671,7]
[421655714,1778031047000,-5822.9583488,0.00013682,2]
[421655718,1778031047000,-3279.7846,0.00013698,2]
[421655713,1778031047000,-258.0,0.00013671,3]
[421655726,1778031047000,-500.0,0.00013698,2]
[421655722,1778031047000,-500.0,0.00013698,2]
[421655716,1778031047000,-2075.65765,0.00013693,2]
[421655725,1778031047000,-546.85,0.00013698,2]
[421655737,1778031047000,-500.0,0.00013698,2]
[421655734,1778031047000,-500.0,0.00013698,2]
[421655730,1778031047000,-500.0,0.00013698,2]
[421655735,1778031047000,-500.0,0.00013698,2]
[421655727,1778031047000,-500.0,0.00013698,2]
[421655729,1778031047000,-500.0,0.00013698,2]
[421655728,1778031047000,-500.0,0.00013698,2]
[421655736,1778031047000,-500.0,0.00013698,2]
[421655731,1778031047000,-500.0,0.00013698,2]
[421655732,1778031047000,-500.0,0.00013698,2]
[421655739,1778031047000,-500.0,0.00013698,2]
[421655743,1778031047000,-500.0,0.00013698,2]
[421655742,1778031047000,-500.0,0.00013698,2]
[421655740,1778031047000,-500.0,0.00013698,2]
[421655723,1778031047000,-500.0,0.00013698,2]
[421655733,1778031047000,-500.0,0.00013698,2]
[421655712,1778031047000,-24927.59405445,0.00013671,7]
[421655686,1778031047000,-2780.76,0.00013424,2]
[421655707,1778031047000,-188.46,0.00013585,2]
[421655682,1778031047000,-986.17,0.00013424,2]
[421655683,1778031047000,-1880.58,0.00013424,2]
[421655684,1778031047000,-1383.33,0.00013424,2]
[421655685,1778031047000,-6815.17,0.00013424,2]
[421655681,1778031047000,-851.23,0.00013424,2]
[421655680,1778031047000,-507.44,0.00013424,2]
[421655741,1778031047000,-500.0,0.00013698,2]
[421655697,1778031047000,-3479.48,0.00013424,2]
[421655687,1778031047000,-500.0,0.00013424,2]
[421655688,1778031047000,-500.0,0.00013424,2]
[421655693,1778031047000,-500.0,0.00013424,2]
[421655690,1778031047000,-2887.58,0.00013424,2]
[421655692,1778031047000,-602.19,0.00013424,2]
[421655691,1778031047000,-500.0,0.00013424,2]
[421655689,1778031047000,-1566.52,0.00013424,2]
[421655694,1778031047000,-6018.08,0.00013424,2]
[421655695,1778031047000,-500.0,0.00013424,2]
[421655696,1778031047000,-1533.09,0.00013424,2]
[421655698,1778031047000,-5000.0,0.00013484,2]
[421655702,1778031047000,-500.31,0.000135,2]
[421655700,1778031047000,-5000.0,0.00013484,2]
[421655701,1778031047000,-3763.35268014,0.00013485,2]
[421655704,1778031047000,-200.0,0.00013503,2]
[421655703,1778031047000,-11142.34157857,0.00013501,2]
[421655699,1778031047000,-5000.0,0.00013484,2]
[421655710,1778031047000,-30000.0,0.00013671,2]
[421655709,1778031047000,-1061.65,0.000136,5]
[421655705,1778031047000,-188.47,0.00013581,2]
[421655708,1778031047000,-151.42,0.00013599,2]
[421655706,1778031047000,-188.47,0.00013583,2]
[421655744,1778031047000,-398.59,0.00013698,2]
[421655747,1778031047000,-500.0,0.00013698,2]
[421655746,1778031047000,-500.0,0.00013698,2]
[421655781,1778031047000,-500.0,0.00013698,2]
[421655779,1778031047000,-937.14,0.00013698,2]
[421655783,1778031047000,-500.0,0.00013698,2]
[421655785,1778031047000,-500.0,0.00013698,2]
[421655784,1778031047000,-503.83981264,0.00013698,2]
[421655790,1778031047000,-2027.33,0.00013698,2]
[421655791,1778031047000,-2027.33,0.00013698,2]
[421655787,1778031047000,-500.0,0.00013698,2]
[421655788,1778031047000,-872.83,0.00013698,2]
[421655786,1778031047000,-500.0,0.00013698,2]
[421655789,1778031047000,-2027.33,0.00013698,2]
[421655803,1778031047000,-2027.33,0.00013698,2]
[421655793,1778031047000,-2027.33,0.00013698,2]
[421655804,1778031047000,-2027.33,0.00013698,2]
[421655782,1778031047000,-500.0,0.00013698,2]
[421655795,1778031047000,-2027.33,0.00013698,2]
[421655792,1778031047000,-2027.33,0.00013698,2]
[421655800,1778031047000,-2027.33,0.00013698,2]
[421655797,1778031047000,-2027.33,0.00013698,2]
[421655799,1778031047000,-2027.33,0.00013698,2]
[421655794,1778031047000,-2027.33,0.00013698,2]
[421655798,1778031047000,-2027.33,0.00013698,2]
[421655801,1778031047000,-2027.33,0.00013698,2]
[421655802,1778031047000,-500.0,0.00013698,2]
[421655805,1778031047000,-2027.33,0.00013698,2]
[421655745,1778031047000,-500.0,0.00013698,2]
[421655809,1778031047000,-2027.33,0.00013698,2]
[421655808,1778031047000,-2027.33,0.00013698,2]
[421655806,1778031047000,-2027.33,0.00013698,2]
[421655810,1778031047000,-2027.33,0.00013698,2]
[421655796,1778031047000,-2027.33,0.00013698,2]
[421655780,1778031047000,-500.0,0.00013698,2]
[421655807,1778031047000,-2027.33,0.00013698,2]
[421655772,1778031047000,-1350.29,0.00013698,2]
[421655778,1778031047000,-1350.33136747,0.00013698,2]
[421655738,1778031047000,-500.0,0.00013698,2]
[421655748,1778031047000,-1000.0,0.00013698,2]
[421655750,1778031047000,-1000.0,0.00013698,2]
[421655752,1778031047000,-1000.0,0.00013698,2]
[421655763,1778031047000,-1350.29,0.00013698,2]
[421655762,1778031047000,-1350.29,0.00013698,2]
[421655751,1778031047000,-1000.0,0.00013698,2]
[421655753,1778031047000,-1000.0,0.00013698,2]
[421655756,1778031047000,-1350.29,0.00013698,2]
[421655755,1778031047000,-1350.29,0.00013698,2]
[421655761,1778031047000,-1350.29,0.00013698,2]
[421655754,1778031047000,-1350.29,0.00013698,2]
[421655757,1778031047000,-1350.29,0.00013698,2]
[421655760,1778031047000,-1350.29,0.00013698,2]
[421655749,1778031047000,-1000.0,0.00013698,2]
[421655758,1778031047000,-1350.29,0.00013698,2]
[421655759,1778031047000,-1350.29,0.00013698,2]
[421655771,1778031047000,-1350.29,0.00013698,2]
[421655773,1778031047000,-1350.29,0.00013698,2]
[421655766,1778031047000,-1350.29,0.00013698,2]
[421655768,1778031047000,-1350.29,0.00013698,2]
[421655767,1778031047000,-500.0,0.00013698,2]
[421655769,1778031047000,-1350.29,0.00013698,2]
[421655776,1778031047000,-1350.29,0.00013698,2]
[421655764,1778031047000,-1350.29,0.00013698,2]
[421655777,1778031047000,-1350.29,0.00013698,2]
[421655775,1778031047000,-1350.29,0.00013698,2]
[421655770,1778031047000,-1350.29,0.00013698,2]
[421655765,1778031047000,-1350.29,0.00013698,2]
[421655774,1778031047000,-1350.29,0.00013698,2]
[421655853,1778031048000,-639.97227429,0.00013698,2]
[421655840,1778031048000,-500.0,0.00013698,2]
[421655839,1778031048000,-500.0,0.00013698,2]
[421655845,1778031048000,-500.0,0.00013698,2]
[421655855,1778031048000,-500.0,0.00013698,2]
[421655852,1778031048000,-500.0,0.00013698,2]
[421655848,1778031048000,-500.0,0.00013698,2]
[421655846,1778031048000,-500.0,0.00013698,2]
[421655850,1778031048000,-500.0,0.00013698,2]
[421655847,1778031048000,-500.0,0.00013698,2]
[421655851,1778031048000,-500.0,0.00013698,2]
[421655841,1778031048000,-500.0,0.00013698,2]
[421655844,1778031048000,-500.0,0.00013698,2]
[421655865,1778031048000,-2299.38,0.00013698,2]
[421655849,1778031048000,-500.0,0.00013698,2]
[421655856,1778031048000,-500.0,0.00013698,2]
[421655858,1778031048000,-2299.38,0.00013698,2]
[421655857,1778031048000,-500.0,0.00013698,2]
[421655866,1778031048000,-2299.38,0.00013698,2]
[421655867,1778031048000,-2299.38,0.00013698,2]
[421655868,1778031048000,-2299.38,0.00013698,2]
[421655860,1778031048000,-2299.38,0.00013698,2]
[421655859,1778031048000,-2299.38,0.00013698,2]
[421655861,1778031048000,-2299.38,0.00013698,2]
[421655834,1778031048000,-500.0,0.00013698,2]
[421655864,1778031048000,-2299.38,0.00013698,2]
[421655854,1778031048000,-556.8,0.00013698,2]
[421655837,1778031048000,-500.0,0.00013698,2]
[421655822,1778031048000,-1793.27,0.00013698,2]
[421655836,1778031048000,-500.0,0.00013698,2]
[421655863,1778031048000,-2299.38,0.00013698,2]
[421655817,1778031048000,-500.0,0.00013698,2]
[421655818,1778031048000,-948.74,0.00013698,2]
[421655811,1778031048000,-2027.33,0.00013698,2]
[421655816,1778031048000,-500.0,0.00013698,2]
[421655812,1778031048000,-2027.33,0.00013698,2]
[421655814,1778031048000,-500.0,0.00013698,2]
[421655813,1778031048000,-2027.3620858,0.00013698,2]
[421655815,1778031048000,-500.0,0.00013698,2]
[421655819,1778031048000,-500.0,0.00013698,2]
[421655820,1778031048000,-571.85,0.00013698,2]
[421655821,1778031048000,-501.38,0.00013698,2]
[421655835,1778031048000,-500.0,0.00013698,2]
[421655830,1778031048000,-500.0,0.00013698,2]
[421655824,1778031048000,-500.0,0.00013698,2]
[421655826,1778031048000,-500.0,0.00013698,2]
[421655828,1778031048000,-941.0,0.00013698,2]
[421655827,1778031048000,-500.0,0.00013698,2]
[421655825,1778031048000,-500.0,0.00013698,2]
[421655829,1778031048000,-500.0,0.00013698,2]
[421655832,1778031048000,-500.0,0.00013698,2]
[421655842,1778031048000,-500.0,0.00013698,2]
[421655843,1778031048000,-500.0,0.00013698,2]
[421655831,1778031048000,-622.14325303,0.00013698,2]
[421655833,1778031048000,-868.63,0.00013698,2]
[421655838,1778031048000,-500.0,0.00013698,2]
[421655823,1778031048000,-500.0,0.00013698,2]
[421655862,1778031048000,-2299.38,0.00013698,2]